Cogmind - Beta 13 @@@ ROGUE MODE // 2024.07.02 @ 11:39:42 Player: Mr.Morel Result: Core destroyed Performance ------------- Evolutions (1) 500 Regions Visited (5) 1000 Robots Destroyed (19) 95 Value Destroyed (677) 677 Prototype IDs (1) 20 Alien Tech Used (0) 0 Bonus (897) 897 TOTAL SCORE: 3189 Bonus ------- Pacifist 200 Follower Combat Kills 97 Met Imprinter 300 Was Imprinted 300 Cogmind --------- Core Integrity 0/400 Matter 256/300 Energy 252/290 System Corruption 0% Temperature Critical (652) Movement Treading (250) Ox1 Location -6/Proximity Caves Parts ------- > --- POWER (1) -------- Improved Deuterium Engine > --- PROPULSION (2) --- Armored Treads > --- UTILITY (4) ------ Medium Storage Unit Targeting Computer Targeting Computer Hacking Drone Bay (1/1) > --- WEAPON (2) ------- Wave Gun Barrage Gun > --- INVENTORY (10) --- Weight Redist. System ECM Suite Makeshift Hacking Suite Authchip [R/Combat] Relay Coupler [Programmer] (72) Heavy Laser Gauss Cannon CR-A16's Pointy Stick Peak State ------------ > --- POWER ------------ Improved Deuterium Engine > --- PROPULSION ------- Armored Treads Medium Treads > --- UTILITY ---------- Medium Storage Unit Targeting Computer Targeting Computer Hacking Drone Bay > --- WEAPON ----------- Barrage Gun Enhanced Flamer > --- INVENTORY -------- Weight Redist. System ECM Suite Makeshift Hacking Suite Authchip [R/Combat] Relay Coupler [Programmer] Heavy Laser Wave Gun Gauss Cannon CR-A16's Pointy Stick [Rating: 32] Favorites ----------- Power Light Angular Momentum Engine Engine Light Angular Momentum Engine Propulsion Light Treads Treads Light Treads Wheel Wheel Utility Targeting Computer Device Hacking Drone Bay Storage Medium Storage Unit Processor Targeting Computer Weapon Heavy Assault Rifle Energy Gun Wave Gun Ballistic Gun Heavy Assault Rifle Special Weapon Enhanced Flamer Build | -11 -10 -9 -9 -7 -6 ------- Run | Yrd Mat Mat Min Zio Pro Slots Evolved 2 | . . 2 . . . Power . | . . . . . . Propulsion . | . . . . . . Utility 2 | . . 2 . . . Weapon . | . . . . . . Parts Attached 28 | 6 . 11 . 2 9 Power 4 | 1 . . . 1 2 Engine 4 | 1 . . . 1 2 Core . | . . . . . . Reactor . | . . . . . . Propulsion 9 | 2 . 5 . . 2 Treads 5 | . . 3 . . 2 Leg . | . . . . . . Wheel 4 | 2 . 2 . . . Hover . | . . . . . . Flight . | . . . . . . Utility 7 | 1 . 4 . . 2 Device 2 | . . . . . 2 Storage 2 | 1 . 1 . . . Processor 3 | . . 3 . . . Hackware . | . . . . . . Protection . | . . . . . . Artifact . | . . . . . . Weapon 8 | 2 . 2 . 1 3 Energy Gun 3 | . . 1 . 1 1 Energy Cannon . | . . . . . . Ballistic Gun 4 | 2 . 1 . . 1 Ballistic Cannon . | . . . . . . Launcher . | . . . . . . Special Weapon 1 | . . . . . 1 Impact Weapon . | . . . . . . Slashing Weapon . | . . . . . . Piercing Weapon . | . . . . . . Special Melee Weapon . | . . . . . . Unidentified Prototypes 1 | . . . . . 1 Parts Lost 8 | . . 2 . . 6 Power 1 | . . . . . 1 Propulsion 3 | . . 2 . . 1 Utility 2 | . . . . . 2 Weapon 2 | . . . . . 2 Highest Loss Streak 3 | . . 2 . . 3 To Critical Strikes . | . . . . . . Average Slot Usage (%) 97 | . 85 92 100 100 96 Engine 10 | . 14 11 11 11 10 Treads 19 | . . 8 22 22 21 Wheel 1 | . 28 8 . . . Device 1 | . . . . . 5 Storage 11 | . 14 11 11 11 11 Processor 30 | . . 31 33 33 26 Energy Gun 9 | . . 8 11 11 6 Ballistic Gun 11 | . 28 13 11 11 10 Naked Turns . | . . . . . . Heaviest Build 32 | 12 12 21 21 27 32 Greatest Support 48 | 20 20 40 40 40 48 Greatest Overweight (x) 6 | . . 6 . . . Average Overweight (x) . | . . . . . . Largest Inventory Capacity 10 | 8 8 10 10 10 10 Average Capacity 9 | 6 8 9 10 10 10 Most Carried 10 | . . 7 7 10 10 Average Carried 7 | . . 1 7 8 9 Final Capacity 10 | 8 8 10 10 10 10 Final Carried 10 | . . 7 7 10 8 Class Distribution -------------------- 76% | Mutant 23% | Scavenger-Mutant Dominant Class ---------------- Mutant | -10/Materials Mutant | -9/Materials Scavenger-Mutant | -9/Mines Mutant | -7/Zion Scavenger-Mutant | -6/Proximity Caves Resources | -11 -10 -9 -9 -7 -6 ----------- Run | Yrd Mat Mat Min Zio Pro Matter Collected 595 | 229 . 180 18 23 145 Remotely . | . . . . . . Salvage Created 909 | . . 385 67 . 457 Parts 32 | . . 16 7 . 9 Haulers Intercepted 1 | . . 1 . . . Recyclers Shooed . | . . . . . . Parts Field Recycled . | . . . . . . Retrieved Matter . | . . . . . . Parts Self-Destructed 15 | . . . . 1 14 Prevented . | . . . . . . Kills | -11 -10 -9 -9 -7 -6 ------- Run | Yrd Mat Mat Min Zio Pro Combat Hostiles Destroyed 17 | . . 4 4 . 9 Guns 14 | . . 4 4 . 6 Cannons 2 | . . . . . 2 Classes Destroyed 6 | . . 3 1 . 2 Hauler 1 | . . 1 . . . Recycler 1 | . . 1 . . . Drone 1 | . . . . . 1 Swarmer 4 | . . . 4 . . Grunt 7 | . . . . . 7 Sentry 5 | . . 4 . . 1 Best Kill Streak 4 | . . 4 4 . 3 Combat Bots Only 4 | . . 2 4 . 3 Max Kills in Single Turn 1 | . . 1 1 . 1 Gunslinging . | . . . . . . Exploded . | . . . . . . Melee . | . . . . . . Uniques/NPCs Destroyed . | . . . . . . Combat | -11 -10 -9 -9 -7 -6 -------- Run | Yrd Mat Mat Min Zio Pro Hostile Shots Fired 138 | . 5 24 20 . 89 Missed 34 | . 1 6 2 . 25 Damage Taken 1791 | . 45 264 143 . 1339 Core 434 | . . 48 61 . 325 Absorbed by Shields . | . . . . . . Regen/Repaired (Parts) 254 | . . . . 254 . Core Remaining (%) 100 | 100 100 . . . . Volleys Fired 65 | . . 19 6 1 39 Largest 2 | . . 2 2 2 2 Hottest 109 | . . 79 79 104 109 Shots Fired 119 | . . 38 12 2 67 Gun 99 | . . 38 12 2 47 Cannon . | . . . . . . Launcher . | . . . . . . Special 20 | . . . . . 20 Kinetic 67 | . . 27 6 1 33 Thermal 52 | . . 11 6 1 34 Explosive . | . . . . . . Electromagnetic . | . . . . . . Robot Hit Streak 15 | . . 13 3 . 15 Robot Miss Streak 2 | . . 2 2 . 1 Penetration Max . | . . . . . . Secondary Targets 3 | . . . 1 . 2 Max Gunslinging Chain 1 | . . . 1 . 1 Shots Hit Robots 92 | . . 31 7 . 54 Core Hits 38 | . . 12 4 . 22 Critical Kills . | . . . . . . Critical Parts Destroyed . | . . . . . . Critical Strikes 1 | . . . . . 1 Burn 1 | . . . . . 1 Melee Attacks . | . . . . . . Impact . | . . . . . . Slashing . | . . . . . . Piercing . | . . . . . . Sneak Attacks . | . . . . . . Combat Hostiles . | . . . . . . Follow-up Attacks . | . . . . . . Damage Inflicted 1350 | . . 376 102 . 872 Guns 1167 | . . 376 102 . 689 Cannons . | . . . . . . Explosions . | . . . . . . Melee . | . . . . . . Ramming . | . . . . . . Kinetic 756 | . . 261 74 . 421 Thermal 594 | . . 115 28 . 451 Explosive . | . . . . . . Electromagnetic . | . . . . . . Impact . | . . . . . . Slashing . | . . . . . . Piercing . | . . . . . . Highest Corruption 1 | . . 1 1 1 . Average Corruption 1 | . . 1 1 1 . Corruption Purged . | . . . . . . Corruption Blocked . | . . . . . . Effects 1 | . . . . 1 . Data Loss (minor) 1 | . . . . 1 . Overload Shots . | . . . . . . Overflow Damage . | . . . . . . Projectiles . | . . . . . . Explosions . | . . . . . . Melee . | . . . . . . Knockbacks . | . . . . . . Impact . | . . . . . . Kinetic . | . . . . . . Secondary . | . . . . . . Self-Inflicted Damage . | . . . . . . Shots . | . . . . . . Rammed . | . . . . . . Targets Rammed . | . . . . . . Kicked . | . . . . . . Crushed . | . . . . . . Highest Temperature 652 | . . 81 54 62 652 Average Temperature 106 | . . 22 27 31 150 Received Heat Transfer 657 | . 24 90 . . 543 Effects 4 | . . . . . 4 Energy Bleed 1 | . . . . . 1 Short Circuit 1 | . . . . . 1 Damage (minor) 1 | . . . . . 1 Damage (core) 1 | . . . . . 1 Siege Activations . | . . . . . . Robots Corrupted . | . . . . . . Combat Hostiles . | . . . . . . Parts Fried . | . . . . . . Impact Corruptions . | . . . . . . Robots Melted 1 | . . . . . 1 Combat Hostiles 1 | . . . . . 1 Parts Melted 2 | . . . . . 2 Heat Transferred 2297 | . . 296 74 . 1927 Parts Sabotaged . | . . . . . . Parts Stolen . | . . . . . . Parts Stripped . | . . . . . . Power Chain Reactions . | . . . . . . Alert | -11 -10 -9 -9 -7 -6 ------- Run | Yrd Mat Mat Min Zio Pro Peak Influence 145 | . . 142 145 . . Initial 55 | . . . 55 . . Average 54 | . . 66 129 . . Maximum Alert Level . | . . . . . . Low Security (%) 100 | 100 100 100 100 . . Level 1 . | . . . . . . Level 2 . | . . . . . . Level 3 . | . . . . . . Level 4 . | . . . . . . Level 5 . | . . . . . . High Security . | . . . . . . Max Security . | . . . . . . Squads Dispatched 2 | . 1 . . . 1 Investigation 1 | . 1 . . . . Extermination . | . . . . . . Reinforcement . | . . . . . . Assault 1 | . . . . . 1 Garrison . | . . . . . . Intercept . | . . . . . . Searches Triggered . | . . . . . . Construction Impeded . | . . . . . . Haulers Reinforced . | . . . . . . Active Scanning Responses . | . . . . . . Cargo Convoy Interrupts . | . . . . . . Stealth | -11 -10 -9 -9 -7 -6 --------- Run | Yrd Mat Mat Min Zio Pro Distress Signals 2 | . . 2 . . . Communications Jammed . | . . . . . . Distress Signals . | . . . . . . Times Spotted 32 | . 1 7 4 . 20 Peak Tracking Total 5 | . 2 3 4 . 5 Tactical Retreats 2 | . . . . . 2 Traps | -11 -10 -9 -9 -7 -6 ------- Run | Yrd Mat Mat Min Zio Pro Traps Triggered 2 | . 1 1 . . . Indirectly . | . . . . . . Trap Hack Attempts . | . . . . . . Triggered . | . . . . . . Disarmed . | . . . . . . Reprogrammed . | . . . . . . Reused . | . . . . . . Traps Extracted . | . . . . . . Installed . | . . . . . . Triggered . | . . . . . . Machines | -11 -10 -9 -9 -7 -6 ---------- Run | Yrd Mat Mat Min Zio Pro Machines Disabled . | . . . . . . Max in Single Turn . | . . . . . . Machines Repaired . | . . . . . . Machines Dismantled . | . . . . . . Machines Sabotaged . | . . . . . . Overloaded Fab Kills . | . . . . . . Hacking | -11 -10 -9 -9 -7 -6 --------- Run | Yrd Mat Mat Min Zio Pro Machines Accessed 1 | . 1 . . . . Terminals 1 | . 1 . . . . Fabricators . | . . . . . . Repair Stations . | . . . . . . Recycling Units . | . . . . . . Scanalyzers . | . . . . . . Garrison Access . | . . . . . . Total Hacks 3 | . 3 . . . . Successful 2 | . 2 . . . . Failed 1 | . 1 . . . . Catastrophic . | . . . . . . Database Lockouts . | . . . . . . Manual . | . . . . . . Terminals 3 | . 3 . . . . Fabricators . | . . . . . . Repair Stations . | . . . . . . Recycling Units . | . . . . . . Scanalyzers . | . . . . . . Garrison Access . | . . . . . . Terminal Hacks 2 | . 2 . . . . Dispatch Records 1 | . 1 . . . . Zone Layout 1 | . 1 . . . . Fabricator Hacks . | . . . . . . Repair Station Hacks . | . . . . . . Recycling Unit Hacks . | . . . . . . Scanalyzer . | . . . . . . Garrison Access Hacks . | . . . . . . Unauthorized Hacks . | . . . . . . Terminals . | . . . . . . Fabricators . | . . . . . . Repair Stations . | . . . . . . Recycling Units . | . . . . . . Scanalyzers . | . . . . . . Garrison Access . | . . . . . . Data Cores Recovered . | . . . . . . Used . | . . . . . . Hacking Detections 1 | . 1 . . . . Full Trace Events . | . . . . . . Feedback Events . | . . . . . . Feedback Blocked . | . . . . . . Robot Schematics Acquired . | . . . . . . Robots Built . | . . . . . . Authchips . | . . . . . . Time . | . . . . . . Total Robot Build Rating . | . . . . . . Part Schematics Acquired . | . . . . . . Parts Built . | . . . . . . Authchips . | . . . . . . Time . | . . . . . . Total Part Build Rating . | . . . . . . Parts Repaired . | . . . . . . Time . | . . . . . . Parts Recycled . | . . . . . . Recycled Matter . | . . . . . . Retrieved Matter . | . . . . . . Retrieved Components . | . . . . . . Parts Scanalyzed . | . . . . . . Part Schematics Acquired . | . . . . . . Parts Damaged . | . . . . . . Bothacking | -11 -10 -9 -9 -7 -6 ------------ Run | Yrd Mat Mat Min Zio Pro Used RIF Installer . | . . . . . . Robots Hacked . | . . . . . . Non-combat . | . . . . . . Combat . | . . . . . . Robot Hacks Applied . | . . . . . . Relay Couplers Released . | . . . . . . Fabnet Peak Effective % . | . . . . . . Robots Rewired 1 | . . . . . 1 Allies Hacked . | . . . . . . Hacks Repelled . | . . . . . . Allies | -11 -10 -9 -9 -7 -6 -------- Run | Yrd Mat Mat Min Zio Pro Total Allies 5 | . . . . 4 1 Largest Group 4 | . . . . 4 4 Highest-Rated Group 155 | . . . . 155 155 Highest-Rated Ally 40 | . . . . 40 40 Total Orders . | . . . . . . Ally Attacks 25 | . . . . . 25 Total Damage 449 | . . . . . 449 Kills 5 | . . . . . 5 Allies Corrupted . | . . . . . . Allies Melted . | . . . . . . Intel | -11 -10 -9 -9 -7 -6 ------- Run | Yrd Mat Mat Min Zio Pro Robot Analysis Total . | . . . . . . Derelict Logs Recovered 2 | . . . . 2 . Drone Launches . | . . . . . . Drone Recoveries . | . . . . . . Exploration | -11 -10 -9 -9 -7 -6 ------------- Run | Yrd Mat Mat Min Zio Pro Turns Passed 2749 | 59 91 316 57 1633 593 Spaces Moved 1675 | 65 114 178 25 1010 283 Core 12 | 7 . 5 . . . Treads 1385 | . . 67 25 1010 283 Legs . | . . . . . . Wheels 278 | 58 114 106 . . . Hover . | . . . . . . Flight . | . . . . . . Fastest Speed 50 | 50 80 80 160 160 160 Average Speed 148 | 76 80 132 160 160 162 Slowest Speed 350 | 80 80 350 160 160 165 Overloaded Moves . | . . . . . . Propulsion Burnouts . | . . . . . . Robots Hopped . | . . . . . . Cave-ins Triggered . | . . . . . . Exploration Rate (%) 28 | 3 26 17 6 79 41 Regions Visited 5 Branch Regions 3 Pre-discovered Areas . | . . . . . . Known Exits Taken 1 | . . . . 1 . Unknown Exits Taken 4 | 1 1 1 1 . . Scrap Searched 2 | . . . . 2 . Spaces Dug . | . . . . . . Terrain Destroyed . | . . . . . . Melee . | . . . . . . Projectile . | . . . . . . AOE . | . . . . . . Terrain Rammed . | . . . . . . Walls Destroyed . | . . . . . . Machines Disabled . | . . . . . . Actions | -11 -10 -9 -9 -7 -6 --------- Run | Yrd Mat Mat Min Zio Pro Total 1803 | 70 113 223 30 1027 340 Wait . | . . . . . . Move 1670 | 64 113 177 24 1009 283 Hop . | . . . . . . Pick Up 19 | . . 10 . 8 1 Fast Attach 14 | 6 . 5 . . 3 Attach 4 | . . 2 . . 2 Detach 2 | . . 2 . . . Swap 10 | . . 4 . 2 4 Drop 14 | . . 4 . 6 4 Fire 65 | . . 19 6 1 39 Melee . | . . . . . . Ram . | . . . . . . Kick . | . . . . . . Crush . | . . . . . . Escape Stasis . | . . . . . . Rewire 5 | . . . . 1 4 Trap . | . . . . . . Miscellaneous . | . . . . . . Route ------- -11/Scrapyard -10/Materials -9/Materials -9/Mines (discovered 2 exits: [*Mat] / *Zio) -7/Zion -6/Proximity Caves History --------- Turn | Location | Event 10 | -11/Scrapyard | Discovered new exit (range 15) 60 | -11/Scrapyard | Entered Materials 144 | -10/Materials | Discovered new exit (range 7) 151 | -10/Materials | Entered another Materials area 151 | -9/Materials | Evolved 2 slots: Utility x2 301 | -9/Materials | Build established: Mutant 451 | -9/Materials | Discovered new exit (range 10) 467 | -9/Materials | Entered Mines 511 | -9/Mines | Discovered new exit (range 9) 522 | -9/Mines | A Derelict revealed a hidden shortcut to a safe place 524 | -9/Mines | Entered Zion 588 | -7/Zion | System corruption cleaned by Quarantine Array 616 | -7/Zion | Learned Factory emergency access door positions 702 | -7/Zion | Build established: Scavenger-Mutant 872 | -7/Zion | Found Relay Coupler [Programmer] 946 | -7/Zion | Found CR-A16's Pointy Stick 1029 | -7/Zion | Build established: Mutant 1298 | -7/Zion | Identified exit to Proximity Caves 1420 | -7/Zion | Given the Hacking Drone Bay 1420 | -7/Zion | Found Prototype Device 1456 | -7/Zion | Visited the Megawrench Repair Shop 1456 | -7/Zion | Megawrench repaired 6 parts 1577 | -7/Zion | Imprinted 1579 | -7/Zion | Declared Zion's savior 2157 | -7/Zion | Entered Proximity Caves 2157 | -6/Proximity Caves | Accompanied by 4 allies 2391 | -6/Proximity Caves | Attracted the attention of an 0b10 outpost 2448 | -6/Proximity Caves | Spotted B-75 Beast 2525 | -6/Proximity Caves | Core integrity fell below 50% 2595 | -6/Proximity Caves | Identified Hacking Drone Bay 2614 | -6/Proximity Caves | Lost 3 parts (1p1u1w) 2711 | -6/Proximity Caves | Build established: Scavenger-Mutant 2732 | -6/Proximity Caves | Core integrity fell below 20% 2751 | -6/Proximity Caves | Core destroyed Last Messages --------------- Acquired 14 matter. Identified Hacking Drone Bay. G-50 Soldier heat damages Adv. Heat Sink, Carbon-fiber Leg, Carbon-fiber Leg, Hvy. Laser. G-50 Soldier overheating. G-50 Soldier destroyed. Acquired 34 matter. G-67 Veteran critical meltdown. Med. Treads destroyed. Critical hit (Burn: +37). Enh. Flamer destroyed. G-50 Soldier destroyed. Switching to secondary target: G-50 Soldier. Targeting Computer broken. Overheating: Short circuit. Carbon-fiber Leg fries itself beyond repair. Overheating: Wave Gun damaged (-22). Overheating: Energy bleed (-46). Overheating: Core damaged (-48). Map ----- +----------------------------------------------------+ | ?????????????????????????????????????????????????? | | ?????????????????????????????????????????????????? | | ?????????????????????????????????????????????????? | | ?????????????????????????????????????????????????? | | ?????????????????????????????????????????????????? | | ?????????????????????????????????????????????????? | | ?????????????????????????????????????????????????? | | ?????????????????????????????????????????????????? | | ?????????????????????????????????????????????????? | | ?????????????????????????????????????????????????? | | ?????????????????????????????????????????????????? | | ?????????????????????????????????????????????????? | | ?????????????????????????????????????????????????? | | ?????????????????????????????????????????????????? | | ?????????????????????????????????????????????????? | | ?????????????????????????????????????????????????? | | ????????????? ??????????????????????????????????? | | ????????????? ???????????????""????????????????? | | ?????????????# ????????????"""???#####????????? | | ??????????????# ???????????""##? ?????????? | | ???????????????# ?????????? ""# ???????????? | | ???????????????# ???????? #????????????? | | ??????????????## ######? #????????????? | | ?????????????## ## #????????????? | | ?????????? %g #???????????????? | | ?????????? @% #????????????????? | | ????????????# # ## ##????????????????? | | ?????????????#### ## ## #????????????????????? | | ????????????????????## #?# #????????????????????? | | ?????????????????????# #??# #????????????????????? | | ?????????????????????##?### #?#####??????????????? | | ???????????????????????## ### #??????????????? | | ??????????????????????## ####?????????????? | | ??????????????????????# ## #?????????????? | | ??????????????????????# #?????????????? | | ?????????????????????## ######????????? | | ?????????????????????# ## #????????? | | ?????????????????? #?##?????? | | ??????????????? ## ##????? | | ??????????????? #????? | | ?????????????? #????? | | ?????????????## ## ##????? | | ??????????????#### ?## ### ## #?????? | | ??????????????#### ???## " #?## ### #?????? | | ?????????????? ???#"%##??# ##?# #?????? | | ?????????????? ##?# "#??# #?## #?????? | | ?? ?????????? ## #?# ### #?????? | | ? ??????????? # ### ## ##?????? | | ???????????? ## ## #####??????? | | ????????????? ## ## ##??????????? | +----------------------------------------------------+ Best States ------------- Heat Dissipation 42 Energy Generation 18 Energy Capacity 300 Matter Stores 300 Matter Capacity 300 Sight Range 16 Terrain Scan Density 10 Evasion (%) 44 Targeting Accuracy 15 Recoil Reduction 2 Authchip Count 1 Item Schematics ----------------- None Robot Schematics ------------------ None Fabricated ------------ Nothing Alien Tech Used ----------------- None Achievements -------------- A New Friend Robot Respite The One Challenges ------------ None Game ------ Seed ConstructEnhancedTreads Manual? 0 Play Time 00:29:03 Cumulative 12.0 hours Start 2024.07.02 @ 11:01:42 End 2024.07.02 @ 11:39:42 Sessions 1 Manual Loads 0 Difficulty Rogue Special Mode None Game No. 30 Rogue 30 Adventurer 0 Explorer 0 Win Type - Total 0 Types 0/0/0/0/0/0/0/0/0 Lore% 15 Gallery% 18 Achievement% 16 Wizard Run 0 Options --------- Layout 2 ASCII 0 Keyboard 1 Movement Arrows Keybinds 0 Fullscreen 1 Font 24/Cog Map View 50x44 Zoom Use 0% Tactical HUD 0 Map Filters NONE Filters NONE Steam 1 RUN: eeaa3eb7-0c2f-4daa-80df-af9dd2f97cc7